bitfinex/quotes_SOLUSD_20220113
["timestamp","ask_amount","ask_price","bid_price","bid_amount"]
[1642111295806,6.0426,148.97,148.91,11.97129521]
[1642111296007,6.3026,148.97,148.91,11.97129521]
[1642111296407,6.3026,148.97,148.92,2.685]
[1642111296608,6.3026,148.97,148.92,13.0056]
[1642111296810,25.9163,149.0,148.92,13.2656]
[1642111297010,23.2313,149.0,148.93,1.64999521]
[1642111297413,23.2313,149.0,148.93,0.51]
[1642111297609,29.2313,149.0,148.93,0.51]
[1642111297809,23.2313,149.0,148.93,0.51]
[1642111298009,23.2313,149.0,148.93,0.25]
[1642111298610,23.2313,149.0,148.92,9.195]
[1642111299010,23.4913,149.0,148.92,9.195]
[1642111299212,29.5327,149.0,148.94,10.0692]
[1642111299611,29.5327,149.0,148.94,10.5792]
[1642111299813,29.5327,149.0,148.94,10.3192]
[1642111301538,2.685,148.99,148.94,10.3192]
[1642111301739,2.685,148.99,148.94,0.25]
[1642111301943,6.0422,148.98,148.93,0.25]
[1642111302340,6.0422,148.98,148.9,6.25]
[1642111303242,6.0422,148.98,148.92,10.0705]
[1642111303641,6.0422,148.98,148.92,10.3205]
[1642111304042,6.3022,148.98,148.92,10.3205]
[1642111305544,6.3022,148.98,148.92,0.25]
[1642111305946,6.3022,148.98,148.91,10.3213]
[1642111306345,6.3022,148.98,148.91,0.25]
[1642111306546,24.9697,148.97,148.89,7.89999521]
[1642111306747,6.0432,148.96,148.9,10.0717]
[1642111306948,6.0432,148.96,148.9,10.3217]
[1642111307146,6.0432,148.96,148.87,4.33499521]
[1642111307446,6.0432,148.96,148.84,9.6962888]
[1642111307447,2.686,148.95,148.84,9.6962888]
[1642111307647,25.5747,148.95,148.84,7.0102888]
[1642111307846,6.045,148.91,148.84,17.0861888]
[1642111308453,6.045,148.91,148.84,10.3259]
[1642111310450,6.305,148.91,148.84,10.3259]
[1642111312156,6.305,148.91,148.84,0.25]
[1642111312557,6.305,148.91,148.82,2.936]
[1642111312756,6.305,148.91,148.82,0.25]
[1642111312957,23.8254,148.9,148.83,2.686]
[1642111313161,6.0471,148.87,148.83,2.686]
[1642111313357,6.0471,148.87,148.83,2.936]
[1642111314158,6.3071,148.87,148.83,2.936]
[1642111314659,0.26,148.87,148.83,2.936]
[1642111315061,6.3063,148.88,148.83,2.936]
[1642111315258,6.3063,148.88,148.83,0.25]
[1642111315460,6.3063,148.88,148.78,9.197]
[1642111315860,6.3063,148.88,148.83,10.077]
[1642111316059,6.3063,148.88,148.83,10.327]
[1642111317265,0.26,148.88,148.83,10.327]
[1642111317465,12.0461,148.89,148.83,10.327]
[1642111317666,6.3061,148.89,148.83,10.327]
[1642111317866,12.3061,148.89,148.83,10.327]
[1642111318467,6.3061,148.89,148.83,10.327]
[1642111320992,6.3061,148.89,148.83,16.327]
[1642111322695,6.3061,148.89,148.83,10.327]
[1642111324700,8.9931,148.89,148.83,10.327]
[1642111325299,6.3061,148.89,148.83,10.327]
[1642111325800,0.26,148.89,148.83,10.327]
[1642111326000,23.8254,148.9,148.83,16.327]
[1642111326399,23.8254,148.9,148.83,10.327]
[1642111326600,23.8254,148.9,148.83,16.327]
[1642111327502,23.8254,148.9,148.83,6.0]
[1642111327700,23.8254,148.9,148.82,12.7647]
[1642111327901,2.687,148.89,148.82,10.0777]
[1642111328300,8.7332,148.89,148.82,10.0777]
[1642111328500,6.0462,148.89,148.82,16.0777]
[1642111328704,6.0462,148.89,148.82,16.3277]
[1642111328904,6.0462,148.89,148.82,10.3277]
[1642111329300,23.8254,148.9,148.82,10.3277]
[1642111329501,24.0854,148.9,148.82,16.0777]
[1642111330303,30.1313,148.9,148.82,16.0777]
[1642111330503,2.687,148.89,148.82,16.0777]
[1642111330904,2.687,148.89,148.82,16.3277]
[1642111331110,2.687,148.89,148.82,28.93822469]
[1642111331305,2.687,148.89,148.82,29.19822469]
[1642111331506,22.5428,148.92,148.83,2.687]
[1642111331705,12.317,148.96,148.87,10.0734]
[1642111332109,18.317,148.96,148.87,10.5834]
[1642111332510,18.577,148.96,148.87,10.5834]
[1642111333313,6.0442,148.95,148.87,10.5834]
[1642111333509,6.0442,148.95,148.87,16.5834]
[1642111333712,29.5498,148.95,148.87,16.5834]
[1642111334813,29.5498,148.95,148.87,10.5834]
[1642111335821,2.686,148.94,148.87,16.5834]
[1642111336720,2.686,148.94,148.87,10.5834]
[1642111336919,8.7304,148.94,148.87,16.5834]
[1642111337321,8.7304,148.94,148.87,10.5834]
[1642111338021,8.7304,148.94,148.87,16.5834]
[1642111340051,8.7304,148.94,148.87,10.5834]
[1642111340647,6.0444,148.94,148.87,16.5834]
[1642111340847,32.2358,148.95,148.87,16.5834]
[1642111341047,32.4958,148.95,148.87,16.5834]
[1642111341748,34.34141101,148.95,148.87,16.5834]
[1642111342952,34.34141101,148.95,148.87,10.5834]
[1642111343157,40.34141101,148.95,148.87,0.25]
[1642111343357,50.22141101,148.95,148.86,1.92373173]
[1642111344557,50.22141101,148.95,148.86,2.17373173]
[1642111344958,1.84561101,148.93,148.86,0.25]
[1642111345158,8.7316,148.92,148.86,0.25]
[1642111345360,33.5092,148.92,148.84,4.85973173]
[1642111346063,67.19,148.91,148.84,4.60973173]
[1642111346258,2.686,148.9,148.84,4.60973173]
[1642111346458,6.0482,148.87,148.84,4.60973173]
[1642111346657,3.03219997,148.86,148.83,1.92373173]
[1642111347159,2.687,148.85,148.83,1.92373173]
[1642111347558,6.0482,148.85,148.79,3.82467542]
[1642111347757,6.0482,148.85,148.76,3.82467542]
[1642111347960,6.0482,148.85,148.77,2.688]
[1642111348358,6.0482,148.85,148.77,2.938]
[1642111348959,8.9952,148.85,148.77,2.938]
[1642111349159,31.7145,148.85,148.77,2.938]
[1642111350164,31.7145,148.85,148.77,0.25]
[1642111350663,31.7145,148.85,148.76,2.937]
[1642111350863,31.4545,148.85,148.76,13.019]
[1642111351062,31.4545,148.85,148.76,19.019]
[1642111351867,2.688,148.87,148.76,19.279]
[1642111352063,24.2539,148.87,148.76,35.64159451]
[1642111352263,24.2539,148.87,148.76,102.83159451]
[1642111353166,24.2539,148.87,148.77,3.84908207]
[1642111353363,24.2539,148.87,148.81,10.0782]
[1642111353564,24.2539,148.87,148.81,16.3282]
[1642111353565,24.5139,148.87,148.81,16.3282]
[1642111353763,24.5139,148.87,148.81,15.8282]
[1642111357568,24.5139,148.87,148.81,9.8282]
[1642111357766,30.561,148.87,148.81,9.8282]
[1642111357966,2.687,148.86,148.81,9.8282]
[1642111359869,2.947,148.86,148.81,9.8282]
[1642111363175,2.947,148.86,148.81,9.5782]
[1642111364380,8.9941,148.86,148.81,9.5782]
[1642111364578,8.9941,148.86,148.81,9.8282]
[1642111366107,6.3071,148.86,148.81,9.8282]
[1642111372314,6.3071,148.86,148.81,9.5782]
[1642111372512,8.9941,148.86,148.81,9.5782]
[1642111373915,8.9941,148.86,148.81,9.8282]
[1642111374517,2.687,148.86,148.81,10.0882]
[1642111374718,2.687,148.86,148.81,16.0882]
[1642111374915,24.2539,148.87,148.81,16.0882]
[1642111376018,24.5139,148.87,148.81,16.0882]
[1642111376219,0.26,148.87,148.81,16.0882]
[1642111376422,2.687,148.91,148.81,16.0882]
[1642111376621,22.9982,148.92,148.87,10.073]
[1642111377019,22.9982,148.92,148.87,16.323]
[1642111377226,2.686,148.94,148.87,16.323]
[1642111377420,3.75811911,148.95,148.88,2.686]
[1642111377820,3.75811911,148.95,148.88,8.936]
[1642111378019,3.75811911,148.95,148.88,2.936]
[1642111378218,3.75811911,148.95,148.88,0.25]
[1642111378219,2.686,148.94,148.88,0.25]
[1642111378419,2.686,148.94,148.84,27.0833]
[1642111378619,2.686,148.94,148.84,33.3433]
[1642111379021,2.686,148.95,148.84,33.3433]
[1642111379221,6.0441,148.94,148.88,10.0735]
[1642111379420,2.686,148.93,148.88,10.0735]
[1642111379822,2.946,148.93,148.88,10.3235]
[1642111380421,8.9905,148.93,148.88,0.25]
[1642111380819,8.9905,148.93,148.84,30.6473]
[1642111381020,6.3045,148.93,148.85,2.686]
[1642111381221,2.686,148.92,148.84,30.6473]
[1642111381420,2.686,148.92,148.84,6.25]
[1642111381820,2.686,148.92,148.84,0.25]
[1642111382121,8.7309,148.92,148.86,10.075]
[1642111382522,8.7309,148.92,148.86,16.325]
[1642111382922,2.686,148.92,148.86,10.325]
[1642111383121,2.686,148.92,148.86,16.325]
[1642111383322,6.0447,148.93,148.86,16.325]
[1642111383522,6.0447,148.93,148.86,10.325]
[1642111384523,6.3047,148.93,148.86,10.325]
[1642111388026,6.3047,148.93,148.86,16.325]
[1642111388425,6.3047,148.93,148.86,10.325]
[1642111388626,6.3047,148.93,148.86,16.325]
[1642111388928,6.3047,148.93,148.86,10.325]
[1642111391027,6.3047,148.93,148.86,16.325]
[1642111392329,6.3047,148.93,148.86,10.325]
[1642111392831,6.3047,148.93,148.86,16.325]
[1642111393029,0.26,148.93,148.86,16.325]
[1642111393230,0.26,148.93,148.87,2.686]
[1642111393430,8.7301,148.95,148.88,10.0733]
[1642111393831,8.7301,148.95,148.88,10.3233]
[1642111394029,8.7301,148.95,148.88,16.3233]
[1642111395941,2.686,148.95,148.88,16.5833]
[1642111396743,24.5148,148.96,148.89,2.686]
[1642111396940,24.5148,148.96,148.91,10.0711]
[1642111397343,24.7748,148.96,148.91,16.3211]
[1642111397542,24.7748,148.96,148.91,10.3211]
[1642111401067,24.7748,148.96,148.91,16.3211]
[1642111401565,24.7748,148.96,148.91,10.3211]
[1642111402766,24.7748,148.96,148.91,10.0711]
[1642111404569,24.7748,148.96,148.91,10.3211]
[1642111407470,30.8182,148.96,148.91,0.25]
[1642111407671,2.685,148.95,148.91,0.25]
[1642111407870,2.685,148.95,148.88,0.25]
[1642111408071,2.685,148.95,148.84,26.0909]
[1642111408271,2.685,148.95,148.84,25.8409]
[1642111408873,2.685,148.95,148.84,31.8409]
[1642111409272,6.0446,148.94,148.86,10.0745]
[1642111409473,2.686,148.93,148.86,16.3245]
[1642111409674,6.0446,148.94,148.86,16.3245]
[1642111409875,2.686,148.95,148.86,16.3245]
[1642111410276,2.686,148.95,148.86,29.41733146]
[1642111410481,33.2442,148.96,148.86,29.67733146]
[1642111411575,33.5042,148.96,148.86,29.67733146]
[1642111411776,33.5042,148.96,148.87,2.686]
[1642111411977,33.5042,148.96,148.89,10.0726]
[1642111412378,33.5042,148.96,148.89,16.3226]
[1642111414285,33.5042,148.96,148.89,16.0726]
[1642111414482,33.5042,148.96,148.89,10.0726]
[1642111415583,33.5042,148.96,148.89,10.3226]
[1642111416087,43.1342,148.96,148.89,0.25]
[1642111416284,49.1342,148.96,148.89,0.25]
[1642111416484,49.1342,148.96,148.83,36.7764]
[1642111416684,49.1342,148.96,148.83,3.195]
[1642111416886,49.3842,148.96,148.83,9.195]
[1642111417085,49.3842,148.96,148.83,31.8343]
[1642111417486,49.3842,148.96,148.83,31.5743]
[1642111417990,49.3842,148.96,148.83,28.8893]
[1642111418187,49.3842,148.96,148.85,10.0758]
[1642111419487,49.3842,148.96,148.85,10.3258]
[1642111419688,53.14231911,148.96,148.85,10.3258]
[1642111425322,53.14231911,148.96,148.85,0.25]
[1642111425523,120.33231911,148.96,148.84,0.25]
[1642111425725,1.64999521,148.95,148.84,0.25]
[1642111425923,12.316,148.94,148.82,2.936]
[1642111426122,6.0472,148.88,148.82,2.936]
[1642111426524,6.0472,148.88,148.8,2.687]
[1642111426924,6.0472,148.88,148.8,8.687]
[1642111427124,6.0472,148.88,148.81,10.0786]
[1642111427929,6.0472,148.88,148.81,10.3286]
[1642111428125,6.0472,148.88,148.81,10.0786]
[1642111428325,6.0472,148.88,148.82,2.687]
[1642111428525,6.0472,148.88,148.81,10.0786]
[1642111429728,2.687,148.87,148.81,10.0786]
[1642111429928,14.7343,148.87,148.8,2.687]
[1642111430127,8.7343,148.87,148.8,2.687]
[1642111430329,14.7343,148.87,148.8,2.687]
[1642111430729,14.7343,148.87,148.8,2.937]
[1642111430929,14.7343,148.87,148.8,0.25]
[1642111431228,23.2048,148.86,148.8,0.25]
[1642111431431,6.0478,148.85,148.79,10.08]
[1642111431628,6.0478,148.85,148.79,0.25]
[1642111431830,23.3339,148.84,148.79,0.25]
[1642111432437,6.0486,148.83,148.77,10.0809]
[1642111433034,6.0486,148.83,148.77,16.0809]
[1642111433336,23.3339,148.84,148.77,16.0809]
[1642111433733,23.5939,148.84,148.77,16.3309]
[1642111434134,29.6422,148.84,148.77,16.3309]
[1642111434633,29.6422,148.84,148.77,16.5909]
[1642111435334,23.5939,148.84,148.77,16.5909]
[1642111436636,23.5939,148.84,148.79,10.0796]
[1642111437038,23.5939,148.84,148.79,10.3296]
[1642111437737,0.26,148.84,148.79,10.3296]
[1642111437938,26.2056,148.86,148.79,16.5896]
[1642111438138,23.5186,148.86,148.79,16.5896]
[1642111439139,23.5186,148.86,148.79,10.3396]
[1642111439541,23.5186,148.86,148.79,16.3396]
[1642111439942,23.7786,148.86,148.79,16.3396]
[1642111440138,32.513,148.86,148.79,16.3396]
[1642111440338,26.4656,148.86,148.79,16.3396]
[1642111440540,2.947,148.86,148.79,16.5896]
[1642111440739,0.26,148.86,148.79,16.5896]
[1642111440940,12.317,148.89,148.79,42.21949521]
[1642111440941,12.577,148.89,148.79,42.21949521]
[1642111441240,9.89,148.89,148.79,42.21949521]
[1642111442040,34.0306,148.89,148.79,42.21949521]
[1642111442242,6.0469,148.88,148.79,42.21949521]
[1642111442441,8.7339,148.88,148.79,42.21949521]
[1642111443042,2.687,148.88,148.79,42.21949521]
[1642111443243,2.687,148.88,148.8,67.19]
[1642111443472,24.1406,148.89,148.81,2.687]
[1642111443644,24.1406,148.89,148.85,10.0758]
[1642111444046,24.1406,148.89,148.85,10.3258]
[1642111445945,24.4006,148.89,148.85,0.25]
[1642111446346,24.4006,148.89,148.84,10.3264]
[1642111446846,24.4006,148.89,148.84,16.3264]
[1642111447252,24.4006,148.89,148.84,10.3264]
[1642111447448,24.4006,148.89,148.84,16.3264]
[1642111449752,24.4006,148.89,148.84,10.3264]
[1642111449951,24.4006,148.89,148.84,16.3264]
[1642111451755,24.4006,148.89,148.84,10.3264]
[1642111452555,24.4006,148.89,148.84,10.0764]
[1642111453156,27.0866,148.89,148.84,10.0764]
[1642111453356,41.514,148.89,148.8,1.64999521]
[1642111453555,47.514,148.89,148.8,6.0]
[1642111453754,47.514,148.89,148.78,6.0]
[1642111453955,47.514,148.89,148.77,7.64999521]
[1642111454454,47.514,148.89,148.77,8.15999521]
[1642111455262,47.764,148.89,148.8,10.0792]
[1642111455464,47.764,148.89,148.8,16.3292]
[1642111456062,47.514,148.89,148.8,16.3292]
[1642111466994,35.2076,148.89,148.81,1.64999521]
[1642111467197,24.1406,148.89,148.85,10.0759]
[1642111467593,24.1406,148.89,148.85,10.3259]
[1642111467994,24.1406,148.89,148.85,0.25]
[1642111468496,24.1406,148.89,148.84,10.0764]
[1642111469094,24.1406,148.89,148.84,16.3264]
[1642111470098,24.1406,148.89,148.84,10.3264]
[1642111470498,24.4006,148.89,148.84,10.3264]
[1642111470697,24.4006,148.89,148.84,16.3264]
[1642111473400,24.4006,148.89,148.84,0.25]
[1642111473603,24.4006,148.89,148.83,6.51]
[1642111473902,24.4006,148.89,148.83,0.25]
[1642111474103,24.4006,148.89,148.81,6.25]
[1642111474303,2.687,148.88,148.81,6.25]
[1642111474502,8.7343,148.88,148.81,16.3287]
[1642111476403,2.687,148.88,148.81,16.5887]
[1642111476603,30.1872,148.89,148.81,16.5887]
[1642111477704,30.4372,148.89,148.81,16.5887]
[1642111477905,2.687,148.88,148.81,16.5887]
[1642111478106,8.7341,148.88,148.81,16.5887]
[1642111478308,8.9941,148.88,148.81,16.3287]
[1642111478506,9.2441,148.88,148.81,6.25]
[1642111478708,8.9941,148.88,148.81,6.25]
[1642111479009,14.9941,148.88,148.81,6.25]
[1642111479809,14.9941,148.88,148.81,0.25]
[1642111480112,8.947,148.88,148.81,16.0785]
[1642111480511,8.947,148.88,148.81,16.3285]
[1642111480710,6.26,148.88,148.81,16.3285]
[1642111481110,0.26,148.88,148.81,16.3285]
[1642111481311,32.09847878,148.89,148.81,16.3285]
[1642111482010,32.35847878,148.89,148.81,16.3285]
[1642111482209,36.4472,148.89,148.81,16.3285]
[1642111492550,30.4472,148.89,148.81,16.3285]
[1642111492752,24.4006,148.89,148.81,16.3285]
[1642111492950,24.4006,148.89,148.81,16.5885]
[1642111493153,24.4006,148.89,148.82,1.64999521]
[1642111493355,24.4006,148.89,148.83,10.0768]
[1642111493550,24.4006,148.89,148.83,16.3268]
[1642111500658,30.4471,148.89,148.83,10.3268]
[1642111501960,30.4471,148.89,148.83,16.3268]
[1642111503361,30.4471,148.89,148.83,10.3268]
[1642111503563,30.4471,148.89,148.83,16.3268]
[1642111503768,30.4471,148.89,148.83,10.3268]
[1642111503963,30.4471,148.89,148.83,16.3268]
[1642111504165,30.4471,148.89,148.83,10.3268]
[1642111504562,30.4471,148.89,148.83,16.3268]
[1642111504761,30.4471,148.89,148.83,10.3268]
[1642111511007,30.4471,148.89,148.83,16.3268]
[1642111513407,24.4006,148.89,148.83,16.3268]
[1642111516712,24.4006,148.89,148.83,10.3268]
[1642111517012,24.4006,148.89,148.83,16.3268]
[1642111523715,30.447,148.89,148.83,6.25]
[1642111523925,30.447,148.89,148.83,6.0]
[1642111524117,30.447,148.89,148.81,10.60675314]
[1642111524419,2.687,148.88,148.81,7.91975314]
[1642111524817,2.687,148.88,148.81,17.99845314]
[1642111525018,2.687,148.88,148.81,18.24845314]
[1642111525223,2.687,148.88,148.81,16.3287]
[1642111525517,26.05187878,148.89,148.81,19.2757]
[1642111526919,24.1406,148.89,148.81,21.19545314]
[1642111528020,24.4006,148.89,148.81,21.19545314]
[1642111528819,24.4006,148.89,148.81,22.84544835]
[1642111535132,24.1406,148.89,148.81,22.84544835]
[1642111536635,24.4006,148.89,148.81,22.84544835]
[1642111541863,24.1406,148.89,148.81,22.84544835]
[1642111543870,24.4006,148.89,148.81,22.84544835]
[1642111546983,1.91127878,148.9,148.81,22.84544835]
[1642111547177,1.91127878,148.91,148.82,11.54975314]
[1642111547378,1.91127878,148.91,148.86,10.0724]
[1642111547580,1.91127878,148.91,148.87,2.686]
[1642111547778,7.878e-05,148.91,148.89,66.0]
[1642111547987,7.878e-05,148.91,148.9,5.71819997]
[1642111548181,1.92340017,148.93,148.9,5.71819997]
[1642111548380,1.92340017,148.93,148.9,13.87819518]
[1642111548590,1.92340017,148.93,148.92,67.0683]
[1642111548783,3.75056344,148.97,148.94,67.19]
[1642111548981,3.75056344,148.97,148.94,73.7]
[1642111549182,3.75056344,148.97,148.95,4.33499521]
[1642111549381,3.75056344,148.97,148.95,7.36719518]
[1642111549583,3.75056344,149.02,148.96,44.64999521]
[1642111549784,3.75056344,149.02,148.99,10.0657]
[1642111549984,3.75056344,149.02,148.99,10.3157]
[1642111550385,2.07293628,149.02,148.99,10.3157]
[1642111550584,2.07293628,149.02,149.0,3.03219997]
[1642111550984,8.31084516,149.05,149.0,3.28219997]
[1642111551183,2.685,149.05,149.0,3.28219997]
[1642111551585,2.945,149.05,149.0,3.28219997]
[1642111551786,2.685,149.05,149.0,3.28219997]
[1642111555591,2.945,149.05,149.0,13.34799997]
[1642111557028,0.26,149.05,149.0,13.34799997]
[1642111557425,51.2084,149.06,149.0,13.34799997]
[1642111557625,51.4684,149.06,149.0,13.34799997]
[1642111560531,57.7583,149.06,149.0,3.03219997]
[1642111561131,63.7583,149.06,149.0,3.03219997]
[1642111562029,63.7583,149.06,149.0,3.28219997]
[1642111562229,6.0407,149.04,149.0,0.25]
[1642111562430,2.684,149.03,148.97,10.3177]
[1642111562629,6.0407,149.04,148.97,10.3177]
[1642111563038,6.0407,149.04,148.97,16.3177]
[1642111563938,8.7242,149.05,148.97,16.5777]
[1642111564139,8.7242,149.05,148.97,10.5777]
[1642111565041,2.684,149.05,148.97,16.5777]
[1642111565241,57.2482,149.06,148.97,16.5777]
[1642111566141,63.2482,149.06,148.97,16.5777]
[1642111566342,57.2482,149.06,148.97,16.5777]
[1642111567561,57.5082,149.06,148.97,16.5777]
[1642111572373,63.5082,149.06,148.97,16.5777]
[1642111572572,57.5082,149.06,148.97,16.5777]
[1642111573878,57.5082,149.06,148.97,16.3177]
[1642111574078,57.7582,149.06,148.97,10.3177]
[1642111574279,3.84483106,149.05,148.97,16.3177]
[1642111574479,2.684,149.04,148.97,16.3177]
[1642111574679,8.7248,149.04,148.97,10.3177]
[1642111575479,2.684,149.05,148.97,16.5777]
[1642111575879,51.2084,149.06,148.97,16.5777]
[1642111576081,48.5244,149.06,148.98,2.684]
[1642111576280,48.5244,149.06,149.0,10.0652]
[1642111576486,48.5244,149.06,149.0,16.3152]
[1642111576682,48.5244,149.06,149.0,10.3152]
[1642111576886,48.5244,149.06,149.0,16.3152]
[1642111577086,48.7844,149.06,149.0,10.3152]
[1642111577282,48.7844,149.06,149.0,16.3152]
[1642111581887,51.4684,149.06,149.0,16.3152]
[1642111582088,48.7844,149.06,149.0,16.3152]
[1642111587019,48.7844,149.06,149.0,16.0652]
[1642111588520,48.7844,149.06,149.0,16.3152]
[1642111588726,48.7844,149.06,149.0,10.3152]
[1642111588925,48.7844,149.06,149.0,16.3152]
[1642111591631,57.5082,149.06,149.0,10.0652]
[1642111591830,57.5082,149.06,148.99,10.0665]
[1642111592030,57.5082,149.06,148.97,29.6856]
[1642111593030,57.5082,149.06,148.97,29.9356]
[1642111593230,57.5082,149.06,148.99,10.0666]
[1642111593433,63.5082,149.06,148.99,10.0666]
[1642111593634,63.5082,149.06,148.99,16.3166]
[1642111595633,57.5082,149.06,148.99,16.3166]
[1642111597033,54.8242,149.06,148.99,16.3166]
[1642111597267,48.5244,149.06,148.99,16.5766]
[1642111598335,2.684,149.08,148.99,16.5766]
[1642111598535,5.62584516,149.1,148.99,95.04659521]
[1642111598741,29.54174516,149.11,148.99,94.79659521]
[1642111599144,5.62584516,149.11,148.99,94.79659521]
[1642111599345,5.62584516,149.11,149.0,6.48274254]
[1642111599546,5.62584516,149.11,149.05,10.0579]
[1642111599745,5.62584516,149.11,149.06,19.92321411]
[1642111599945,5.62584516,149.15,149.06,28.08320932]
[1642111600349,5.62584516,149.15,149.07,11.27999521]
[1642111600649,5.62584516,149.15,149.07,17.78999521]
[1642111601250,5.62584516,149.15,149.08,10.0572]
[1642111601448,27.1168,149.17,149.08,12.7392]
[1642111601647,27.1168,149.17,149.08,19.2492]
[1642111601851,27.1168,149.17,149.09,1.64999521]
[1642111602048,27.1168,149.17,149.09,8.15999521]
[1642111602049,24.4348,149.17,149.09,8.15999521]
[1642111602249,24.4348,149.17,149.13,10.0554]
[1642111602448,2.682,149.18,149.13,10.0554]
[1642111602651,2.682,149.18,149.13,16.3054]
[1642111602850,5.62584516,149.2,149.13,16.5654]
[1642111603550,32.90304516,149.22,149.13,16.5654]
[1642111603752,30.22204516,149.22,149.14,2.681]
[1642111603954,30.22204516,149.22,149.18,10.0535]
[1642111604150,5.62584516,149.22,149.18,10.0535]
[1642111604352,5.62584516,149.22,149.18,10.3035]
[1642111604551,5.62584516,149.22,149.18,16.3035]
[1642111604769,32.48314516,149.25,149.18,10.3035]
[1642111604969,32.48314516,149.25,149.18,16.3035]
[1642111604970,38.48314516,149.25,149.18,16.3035]
[1642111605575,38.48314516,149.25,149.18,16.5635]
[1642111606073,3.83999795,149.24,149.18,16.5635]
[1642111606878,3.83999795,149.24,149.18,10.0535]
[1642111607072,2.68,149.23,149.18,10.0535]
[1642111607273,2.68,149.23,149.13,2.68]
[1642111607274,2.68,149.23,149.16,10.0542]
[1642111607481,2.94,149.23,149.16,16.0542]
[1642111608676,3.83999795,149.22,149.16,16.0542]
[1642111609678,3.83999795,149.22,149.16,16.3142]
[1642111609878,3.83999795,149.22,149.16,16.5642]
[1642111610278,3.83999795,149.22,149.17,2.681]
[1642111610577,32.48314516,149.25,149.19,10.0519]
[1642111610578,26.8573,149.25,149.19,10.0519]
[1642111610980,26.8573,149.25,149.19,10.5619]
[1642111611382,3.83968265,149.24,149.19,10.5619]
[1642111611581,3.83968265,149.24,149.19,13.2419]
[1642111612078,3.83968265,149.24,149.19,10.5619]
[1642111612479,3.83968265,149.24,149.19,16.5619]
[1642111612679,3.83968265,149.24,149.19,10.0519]
[1642111613281,6.51968265,149.24,149.19,10.0519]
[1642111613681,6.51968265,149.24,149.18,10.0534]
[1642111614089,3.83968265,149.23,149.17,2.68]
[1642111614288,2.68,149.22,149.17,2.68]
[1642111614489,2.68,149.22,149.14,52.08169608]
[1642111614689,2.68,149.22,149.14,61.97169608]
[1642111614887,2.68,149.22,149.14,59.29069608]
[1642111615088,2.68,149.22,149.14,65.54069608]
[1642111615289,2.68,149.22,149.17,10.054]
[1642111615489,31.18504516,149.26,149.17,16.564]
[1642111615688,28.50404516,149.26,149.18,2.68]
[1642111615888,28.76404516,149.26,149.18,2.68]
[1642111616088,28.76404516,149.26,149.18,9.19]
[1642111616290,28.76404516,149.26,149.18,6.51]
[1642111616492,28.76404516,149.26,149.18,0.51]
[1642111616691,28.76404516,149.26,149.18,0.25]
[1642111616891,3.83945318,149.25,149.18,0.25]
[1642111617092,3.83945318,149.25,149.17,2.68]
[1642111617298,3.83945318,149.25,149.2,10.0517]
[1642111617494,3.83945318,149.25,149.2,16.5617]
[1642111619097,3.83945318,149.25,149.2,32.2078288]
[1642111619294,3.83945318,149.25,149.23,10.0498]
[1642111619495,3.83945318,149.25,149.23,10.2998]
[1642111619898,3.83945318,149.25,149.24,2.53219997]
[1642111620097,3.83945318,149.25,149.24,2.78219997]
[1642111620396,3.83945318,149.26,149.24,2.78219997]